bitfinex-derivatives/quotes_ETHF0:USTF0_20250531
["timestamp","ask_amount","ask_price","bid_price","bid_amount"]
[1748685421785,0.79257448,2522.4,2522.3,4.0004]
[1748685421992,4.48e-06,2522.4,2522.3,4.0004]
[1748685428795,0.79257448,2522.4,2522.3,4.0004]
[1748685428982,0.79257448,2522.4,2522.3,3.2078]
[1748685429189,0.79273,2522.0,2521.9,0.79269]
[1748685430093,0.79273,2522.0,2521.7,7.09057]
[1748685430094,0.79267,2522.2,2522.1,0.79263]
[1748685430394,4.00039448,2522.4,2522.3,0.7926]
[1748685431296,0.79263,2522.3,2522.2,0.7926]
[1748685431697,2.14853,2522.3,2522.2,0.7926]
[1748685432396,0.79263,2522.2,2522.1,2.71674]
[1748685433689,4.48e-06,2522.4,2522.1,1.9241]
[1748685433995,4.48e-06,2522.4,2522.3,0.7926]
[1748685434192,0.79257448,2522.4,2522.3,0.7926]
[1748685438002,4.48e-06,2522.4,2522.3,0.7926]
[1748685438597,4.48e-06,2522.4,2522.3,5.3485]
[1748685439702,4.48e-06,2522.4,2522.3,10.3485]
[1748685442403,4.48e-06,2522.4,2522.3,10.6606075]
[1748685443305,4.48e-06,2522.4,2522.3,10.3485]
[1748685443903,0.7922,2523.6,2523.5,0.79222]
[1748685444401,2.028,2523.6,2523.5,0.79222]
[1748685445009,1.2358,2523.6,2523.5,0.79222]
[1748685445209,2.02799,2523.6,2523.5,0.79222]
[1748685447308,1.2358,2523.6,2523.5,0.79222]
[1748685447809,2.02799,2523.6,2523.5,0.79222]
[1748685449709,0.79219,2523.6,2523.5,0.79222]
[1748685451604,2.10519,2523.6,2523.5,0.79222]
[1748685452810,0.79222,2523.5,2523.4,3.2078]
[1748685452999,0.79222,2523.5,2523.4,0.79225]
[1748685453405,2.10272,2523.5,2523.4,0.79225]
[1748685455115,2.10274,2523.5,2523.4,0.79225]
[1748685457614,0.79225,2523.4,2523.3,0.00594448]
[1748685457814,0.79238,2523.0,2522.9,4.00019]
[1748685458111,0.79249,2522.7,2522.6,0.79246]
[1748685458317,0.7925,2522.6,2522.5,0.79253]
[1748685458510,0.79253,2522.5,2522.4,6.01585]
[1748685458712,0.79253,2522.6,2522.5,0.79249]
[1748685459012,0.79253,2522.6,2522.5,0.79251]
[1748685459914,2.0978,2522.7,2522.6,0.7925]
[1748685463213,0.79252,2522.6,2522.5,0.7925]
[1748685463417,0.79253,2522.5,2522.4,5.26395]
[1748685463903,0.79247,2522.8,2522.7,0.79244]
[1748685464412,3.44113,2522.9,2522.8,0.79244]
[1748685465512,2.6487,2522.9,2522.8,0.79244]
[1748685465712,0.79235,2523.1,2523.0,0.79238]
[1748685466418,3.2078,2523.4,2523.0,1.98095]
[1748685466617,0.79231,2523.3,2523.2,0.79228]
[1748685466922,3.2078,2523.4,2523.1,1.2359]
[1748685467123,2.07301,2523.3,2523.2,0.79229]
[1748685467820,0.79231,2523.2,2523.1,2.02822]
[1748685468618,2.07301,2523.3,2523.2,0.79231]
[1748685468820,1.2807,2523.3,2523.2,0.79231]
[1748685469021,0.79222,2523.6,2523.5,0.79219]
[1748685471111,0.79222,2523.6,2523.5,2.05289]
[1748685471721,0.79222,2523.6,2523.5,2.05292]
[1748685472822,0.79222,2523.6,2523.5,1.2607]
[1748685474428,0.79228,2523.3,2523.2,1.4456]
[1748685474628,0.79227,2523.4,2523.3,0.79223]
[1748685474826,0.79224,2523.5,2523.4,0.7922]
[1748685476025,3.2078,2523.7,2523.6,0.79219]
[1748685476026,3.99998,2523.7,2523.6,0.79219]
[1748685476229,0.79224,2523.6,2523.5,0.7922]
[1748685477430,2.64351448,2523.8,2523.2,2.63405]
[1748685477627,0.79225,2523.5,2523.4,0.7922]
[1748685478022,0.79228,2523.4,2523.3,0.79226]
[1748685478726,0.79228,2523.4,2523.3,0.79228]
[1748685478929,0.79228,2523.3,2523.2,1.44559]
[1748685479525,0.79228,2523.4,2523.3,0.79224]
[1748685480127,0.79224,2523.5,2523.4,0.79222]
[1748685481632,0.79228,2523.4,2523.3,0.79226]
[1748685481827,0.79231,2523.2,2523.1,1.45162]
[1748685483431,0.7924,2523.1,2523.0,0.79235]
[1748685483632,2.64137,2523.3,2522.8,2.66468]
[1748685483633,0.79238,2523.0,2522.9,1.47578]
[1748685483833,0.79238,2523.0,2522.9,0.6834]
[1748685484034,0.79238,2523.0,2522.9,1.47581]
[1748685484239,0.6606,2523.3,2522.9,0.6834]
[1748685484436,3.2078,2523.4,2523.3,0.79228]
[1748685484733,0.79233,2523.3,2523.2,0.7923]
[1748685486031,4.00008,2523.4,2523.3,0.79228]
[1748685486230,0.79228,2523.4,2523.3,0.79228]
[1748685486635,0.79231,2523.3,2523.2,0.79229]
[1748685487537,2.15131,2523.3,2523.2,0.79229]
[1748685488132,0.79231,2523.2,2523.1,2.04853]
[1748685489932,0.79231,2523.2,2522.9,0.6834]
[1748685489933,0.79238,2523.0,2522.9,0.6834]
[1748685491334,3.2078,2523.4,2522.9,0.6834]
[1748685491530,0.79235,2523.2,2523.1,0.79231]
[1748685493133,4.5675,2523.4,2522.9,3.94248]
[1748685493134,3.2078,2523.4,2523.0,1.9809]
[1748685493340,0.79229,2523.4,2523.3,0.79228]
[1748685494238,0.79223,2523.6,2523.5,0.79219]
[1748685494448,0.79222,2523.5,2523.4,3.32163]
[1748685496840,0.79222,2523.5,2523.4,2.5294]
[1748685497039,1.9806,2523.5,2523.0,3.2078]
[1748685497349,0.79235,2523.2,2523.1,2.69042]
[1748685497752,0.79235,2523.2,2523.1,0.6515]
[1748685498437,0.79235,2523.2,2523.1,1.44385]
[1748685499147,0.79238,2523.1,2523.0,0.79235]
[1748685499745,0.79238,2523.0,2522.9,1.43268]
[1748685500141,0.79238,2523.0,2522.9,0.6403]
[1748685500749,0.79238,2523.0,2522.9,1.43271]
[1748685501540,0.79238,2523.0,2522.9,2.71361]
[1748685502644,3.8694,2523.4,2522.9,1.9212]
[1748685502946,4.0001,2523.4,2523.3,0.79228]
[1748685503244,0.7923,2523.4,2523.3,0.79228]
[1748685504244,0.7923,2523.4,2523.3,1.47258]
[1748685504439,0.7923,2523.4,2523.3,2.12848]
[1748685504639,3.2078,2523.7,2523.3,3.31684]
[1748685504839,4.0,2523.7,2523.6,0.79219]
[1748685506549,0.7922,2523.7,2523.6,0.79219]
[1748685507243,0.00594448,2523.8,2523.7,0.79216]
[1748685507449,0.00594448,2523.8,2523.7,2.13266]
[1748685511149,0.00594448,2523.8,2523.7,2.76566]
[1748685529064,0.79191,2524.5,2524.4,0.79191]
[1748685529559,3.99968,2524.7,2524.6,0.79187]
[1748685530558,3.99964,2524.7,2524.6,0.79187]
[1748685531255,0.00594448,2524.9,2524.5,1.97977]
[1748685531456,0.79183,2524.8,2524.7,0.79181]
[1748685532862,2.14333,2524.8,2524.7,0.79181]
[1748685537368,0.79188,2524.7,2524.6,0.79185]
[1748685537966,0.7919,2524.6,2524.5,0.79188]
[1748685538666,0.79197,2524.4,2524.3,0.79195]
[1748685538868,0.792,2524.3,2524.2,0.79196]
[1748685539571,0.792,2524.2,2524.1,3.99981]
[1748685539868,0.79199,2524.3,2524.2,0.79198]
[1748685540068,2.07948,2524.4,2524.3,0.79197]
[1748685540269,0.79197,2524.3,2524.2,2.07108]
[1748685540471,0.79197,2524.3,2524.2,1.2791]
[1748685540767,0.792,2524.2,2524.1,3.2078]
[1748685540959,1.98005,2524.2,2523.8,2.1236]
[1748685541162,0.79209,2523.9,2523.8,2.1236]
[1748685542669,1.9959,2524.1,2523.8,1.3315]
[1748685542670,1.3499,2524.1,2523.8,1.3315]
[1748685542969,0.79207,2524.1,2524.0,0.79204]
[1748685543562,0.79207,2524.1,2524.0,1.47024]
[1748685543765,0.79207,2524.1,2524.0,0.6782]
[1748685544779,0.79208,2524.0,2523.9,1.3315]
[1748685545079,0.79211,2523.9,2523.8,0.79212]
[1748685545481,0.79211,2523.9,2523.8,2.14192]
[1748685549581,0.7921,2524.0,2523.9,0.79208]
[1748685549789,0.7921,2524.0,2523.9,2.10948]
[1748685549979,0.79207,2524.2,2524.1,0.79202]
[1748685550489,3.2078,2524.3,2524.0,2.09666]
[1748685550490,0.79205,2524.1,2524.0,2.09666]
[1748685550874,0.79214,2523.9,2523.8,0.79211]
[1748685551079,0.79214,2523.9,2523.8,1.3046]
[1748685551483,0.79221,2523.6,2523.5,0.79815448]
[1748685551785,0.79219,2523.7,2523.6,0.79218]
[1748685552190,0.79219,2523.7,2523.6,2.09678]
[1748685552581,0.79217,2523.8,2523.7,0.79213]
[1748685552880,0.79217,2523.8,2523.7,2.09673]
[1748685558489,1.3458,2524.2,2523.7,3.28504]
[1748685558690,0.79207,2524.1,2524.0,0.79205]
[1748685559091,0.79207,2524.1,2524.0,1.41375]
[1748685559793,0.79207,2524.1,2524.0,0.6217]
[1748685560284,0.79207,2524.1,2524.0,1.41378]
[1748685571800,0.79221,2523.7,2523.6,0.79218]
[1748685573102,0.79221,2523.7,2523.6,2.04798]
[1748685575204,0.79216,2523.8,2523.7,0.79214]
[1748685576505,3.99993,2523.9,2523.8,0.79214]
[1748685576802,0.79213,2523.9,2523.8,0.79214]
[1748685577399,0.79213,2523.9,2523.8,2.06764]
[1748685578497,0.79213,2523.9,2523.8,1.2755]
[1748685578704,0.79214,2523.8,2523.7,0.79216]
[1748685579810,3.99994,2523.8,2523.7,0.79216]
[1748685580211,0.79214,2523.8,2523.7,0.79216]
[1748685580808,3.2078,2524.1,2523.7,1.98051]
[1748685581112,3.99989,2524.1,2524.0,0.79211]
[1748685582613,0.79211,2524.0,2523.9,2.76392]
[1748685587815,0.79211,2524.0,2523.9,1.9718]
[1748685588016,0.79221,2523.8,2523.7,0.79218]
[1748685589411,0.79221,2523.8,2523.7,2.02898]
[1748685591215,0.79216,2523.9,2523.8,0.79214]
[1748685591412,0.79216,2523.9,2523.8,2.13864]
[1748685600427,0.79216,2523.9,2523.8,1.3465]
[1748685600735,0.79216,2523.9,2523.8,2.13867]
[1748685604338,0.79216,2523.9,2523.8,1.3465]
[1748685604838,0.79216,2523.9,2523.8,2.13867]
[1748685607238,0.79216,2523.9,2523.8,1.3465]
[1748685607444,0.7922,2523.7,2523.6,0.6427]
[1748685607633,0.79223,2523.6,2523.0,5.50920662]
[1748685607932,3.2078,2523.2,2523.1,0.79239]
[1748685608136,0.79231,2523.4,2523.3,0.7923]
[1748685608935,0.79231,2523.4,2523.3,2.1418]
[1748685612646,4.00600448,2523.6,2523.5,0.79227]
[1748685612843,3.21374448,2523.6,2523.5,0.79227]
[1748685613144,0.00594448,2523.6,2523.5,0.79227]
[1748685613346,0.00594448,2523.6,2523.5,1.46137]
[1748685613649,3.2078,2524.0,2523.9,0.79214]
[1748685614549,3.2078,2524.0,2523.9,2.78544]
[1748685614848,3.99991,2524.0,2523.9,2.78544]
[1748685615042,3.2078,2524.0,2523.9,2.78544]
[1748685615238,3.99991,2524.0,2523.9,0.6423]
[1748685615541,0.79223,2523.6,2523.5,2.14324]
[1748685615846,0.79223,2523.7,2523.6,0.79221]
[1748685616051,0.79219,2523.8,2523.7,0.79217]
[1748685617747,2.76386,2523.9,2523.8,0.79217]
[1748685620050,3.99993,2524.0,2523.9,0.79214]
[1748685620649,0.79213,2524.0,2523.9,0.79214]
[1748685620848,5.34253,2524.0,2523.9,0.79214]
[1748685621149,0.79217,2523.9,2523.8,0.79215]
[1748685621448,2.13477,2523.9,2523.8,0.79215]
[1748685621849,2.13477,2523.9,2523.4,0.6423]
[1748685621850,0.79227,2523.5,2523.4,0.6423]
[1748685623549,0.79233,2523.3,2523.2,1.3568]
[1748685623850,0.79233,2523.3,2523.2,0.79236]
[1748685625147,0.79233,2523.3,2523.2,2.09286]
[1748685625652,2.06011,2523.4,2523.3,0.79233]
[1748685625854,0.79231,2523.4,2523.3,0.79233]
[1748685626944,0.79233,2523.3,2523.2,2.09284]
[1748685627347,0.79233,2523.3,2523.2,1.3005]
[1748685627556,0.79233,2523.3,2523.2,2.09286]
[1748685627850,0.79233,2523.3,2523.2,1.3005]
[1748685628253,0.79233,2523.3,2523.2,2.09286]
[1748685629754,0.79233,2523.3,2523.2,1.3005]
[1748685630654,0.79233,2523.3,2523.2,2.09286]
[1748685630956,0.79233,2523.3,2523.2,1.3005]
[1748685631458,0.79236,2523.2,2523.1,0.00594448]
[1748685631663,2.12326,2523.2,2523.1,0.00594448]
[1748685633350,1.3309,2523.2,2522.4,3.2078]
[1748685633559,0.79252,2522.7,2522.6,0.6423]
[1748685633857,4.00032,2522.7,2522.6,0.6423]
[1748685634061,3.2078,2522.7,2522.6,1.43485]
[1748685634255,4.00032,2522.7,2522.6,1.43485]
[1748685634555,4.00032,2522.7,2522.6,0.6423]
[1748685634859,0.79255,2522.6,2522.5,1.3458]
[1748685636546,4.00034,2522.7,2522.6,0.79255]
[1748685636849,0.79255,2522.6,2522.5,1.3458]
[1748685637349,0.79255,2522.6,2522.5,2.13838]
[1748685637857,4.00034,2522.7,2522.6,0.79255]
[1748685638067,3.2078,2522.7,2522.6,0.79255]
[1748685638251,0.00594448,2522.9,2522.8,0.79249]
[1748685638946,0.79225,2523.6,2523.5,0.79224]
[1748685639159,6.34807612,2523.7,2523.6,0.79223]
[1748685639455,4.00002,2523.7,2523.6,0.79223]
[1748685639656,3.2078,2523.7,2523.6,0.79223]
[1748685640558,3.2078,2523.7,2523.5,1.3008]
[1748685640759,0.79223,2523.6,2523.5,2.09307]
[1748685640959,4.00002,2523.7,2523.6,0.79223]
[1748685641258,0.79223,2523.6,2523.5,1.3008]
[1748685641654,0.79223,2523.6,2523.5,2.09307]
[1748685642058,0.79227,2523.5,2523.4,0.6815]
[1748685642259,0.7923,2523.4,2523.3,1.45661]
[1748685642556,0.79229,2523.5,2523.4,0.79229]
[1748685642758,0.79229,2523.5,2523.4,2.14149]
[1748685643167,0.79229,2523.5,2523.4,1.3492]
[1748685643357,0.7923,2523.4,2523.3,0.6643]
[1748685643557,0.79239,2523.1,2523.0,2.0324]
[1748685643960,0.79238,2523.2,2523.1,0.79238]
[1748685645557,1.2312,2523.3,2523.0,2.0324]
[1748685645864,0.79234,2523.3,2523.2,0.79233]
[1748685646163,0.79234,2523.3,2523.1,0.79237]
[1748685646465,4.00012,2523.4,2523.3,0.79233]
[1748685646656,4.00012,2523.4,2523.2,0.79234]
[1748685646852,0.79236,2523.3,2523.2,0.79235]
[1748685647256,3.2078,2523.4,2523.3,0.79233]
[1748685647760,0.79229,2523.5,2523.4,0.7923]
[1748685647965,3.2078,2523.8,2523.2,3.26749]
[1748685648162,4.0,2523.8,2523.7,0.7922]
[1748685648360,3.2078,2523.8,2523.7,0.7922]
[1748685648564,2.34805612,2524.3,2523.8,0.79217]
[1748685648762,0.79208,2524.1,2523.8,0.79217]
[1748685649359,0.79211,2524.0,2523.8,0.79217]
[1748685649664,0.79209,2524.1,2523.8,0.79217]
[1748685650661,3.2078,2524.4,2523.8,0.79217]
[1748685650963,0.79202,2524.3,2523.8,0.79217]
[1748685651358,3.2078,2524.4,2523.8,0.79217]
[1748685651560,3.2078,2524.0,2523.6,1.9346]
[1748685651867,0.7922,2523.7,2523.6,1.44023]
[1748685652466,0.7922,2523.7,2523.6,0.648]
[1748685652768,1.98046,2523.8,2523.5,0.79226]
[1748685652961,0.79227,2523.6,2523.5,0.79226]
[1748685653361,1.98045,2523.8,2523.3,3.8605]
[1748685653562,4.4654,2523.7,2523.3,0.6527]
[1748685653762,0.79228,2523.5,2523.4,0.79228]
[1748685654670,0.79225,2523.6,2523.5,0.79225]
[1748685655070,0.00594448,2523.9,2523.4,1.98075]
[1748685655269,0.79810448,2523.9,2523.8,0.79217]
[1748685655573,0.79219,2523.8,2523.7,0.79218]
[1748685655973,0.79810448,2523.9,2523.8,0.79217]
[1748685656572,0.00594448,2523.9,2523.5,0.6536]
[1748685656785,0.79229,2523.5,2523.4,0.79229]
[1748685657073,0.79226,2523.6,2523.5,0.79225]
[1748685657275,4.00002,2523.7,2523.6,0.79223]
[1748685657470,0.79225,2523.6,2523.5,0.79224]
[1748685658472,0.79225,2523.6,2523.5,0.79225]
[1748685660475,4.00005,2523.7,2523.6,0.79223]
[1748685660677,1.33264448,2523.9,2523.4,1.98075]
[1748685660878,0.00594448,2523.9,2523.8,0.79217]
[1748685661478,0.00594448,2523.9,2523.8,1.44797]
[1748685663077,0.79223,2523.6,2523.5,0.79225]
[1748685663675,0.7923,2523.5,2523.4,0.79227]
[1748685663981,0.7923,2523.4,2523.3,1.4568]
[1748685664168,3.2078,2523.7,2523.3,0.6645]
[1748685664370,0.79222,2523.7,2523.6,0.79219]
[1748685664773,0.7923,2523.4,2523.3,1.4568]
[1748685665182,0.79229,2523.5,2523.4,0.79226]
[1748685666380,0.79226,2523.6,2523.5,0.79227]
[1748685666581,0.79227,2523.5,2523.4,1.2825]
[1748685666778,0.7923,2523.4,2523.3,0.6645]
[1748685666982,0.79229,2523.5,2523.3,0.6645]
[1748685667183,0.79226,2523.6,2523.5,0.79225]
[1748685667679,5.33893,2523.7,2523.6,0.79223]
[1748685667882,0.79225,2523.6,2523.5,0.79224]
[1748685668178,5.33893,2523.7,2523.6,0.79223]
[1748685668582,4.00003,2523.7,2523.6,0.79223]
[1748685668778,3.2078,2523.7,2523.6,0.79223]
[1748685668982,0.00594448,2523.9,2523.8,0.79217]
[1748685669673,0.00594448,2523.9,2523.8,2.75587]
[1748685671787,0.79217,2523.8,2523.7,0.6423]
[1748685671984,0.79811448,2523.9,2523.8,0.79217]
[1748685672583,0.79217,2523.8,2523.7,1.43447]
[1748685672885,0.7922,2523.7,2523.6,2.11471]
[1748685673073,0.7922,2523.8,2523.7,0.79218]
[1748685673477,0.7922,2523.7,2523.6,2.11473]
[1748685674285,0.7922,2523.7,2523.6,1.3225]
[1748685674476,3.2078,2523.7,2523.4,0.6422]
[1748685674682,0.79232,2523.4,2523.3,0.79231]
[1748685675283,0.7923,2523.5,2523.4,0.79228]
[1748685675484,0.79226,2523.6,2523.5,0.79227]
[1748685675982,0.79227,2523.5,2523.4,2.15838]
[1748685676383,0.79226,2523.6,2523.5,0.79224]
[1748685677986,3.2078,2523.7,2523.6,0.79223]
[1748685678283,0.00594448,2523.9,2523.8,0.79217]
[1748685678685,0.00594448,2523.9,2523.8,2.04257]
[1748685680187,0.79217,2523.8,2523.7,1.2948]
[1748685680380,0.79217,2523.8,2523.7,2.087]
[1748685681086,0.79810448,2523.9,2523.8,0.79217]
[1748685681981,0.00594448,2523.9,2523.5,1.2504]
[1748685682293,0.79222,2523.7,2523.6,0.79221]
[1748685682586,0.79223,2523.6,2523.5,1.2504]
[1748685682787,0.79228,2523.5,2523.2,1.98091]
[1748685682983,0.7923,2523.4,2523.3,1.2809]
[1748685683198,4.0001,2523.4,2523.3,1.2809]
[1748685683483,0.79236,2523.3,2523.2,0.79235]
[1748685684389,0.79236,2523.2,2523.1,0.6381]
[1748685684590,2.04305,2523.3,2523.1,0.6381]
[1748685684791,0.79235,2523.3,2523.1,0.6381]
[1748685684992,0.79235,2523.3,2523.2,2.15346]
[1748685685192,0.79236,2523.2,2523.1,0.6381]
[1748685687091,2.04305,2523.3,2523.2,0.79236]
[1748685687493,0.79236,2523.2,2523.1,1.43047]
[1748685688888,1.98093,2523.2,2522.9,1.3611]
[1748685689093,0.79249,2522.9,2522.8,0.79248]
[1748685689293,0.79249,2522.8,2522.7,2.0725]
[1748685689493,0.79249,2522.8,2522.7,1.41222]
[1748685689680,3.2078,2522.8,2522.4,0.00594448]
[1748685689881,4.00038,2522.5,2522.4,0.00594448]
[1748685691096,4.00038,2522.5,2522.4,0.79855448]
[1748685691400,4.00038,2522.5,2522.4,0.00594448]
[1748685694096,4.00038,2522.5,2522.4,0.79855448]
[1748685694304,4.00027,2522.9,2522.5,1.98145]
[1748685694497,4.00027,2522.9,2522.8,0.79249]
[1748685694702,0.7925,2522.8,2522.7,0.7925]
[1748685694894,0.7925,2522.8,2522.7,2.1553]
[1748685695494,0.79252,2522.7,2522.6,0.6307]
[1748685695701,0.79252,2522.7,2522.6,1.42325]
[1748685696104,2.13639,2522.8,2522.7,0.79252]
[1748685696288,1.3439,2522.8,2522.7,0.79252]
[1748685696494,0.79251,2522.8,2522.7,0.79252]
[1748685696789,4.00027,2522.9,2522.7,1.3625]
[1748685696991,3.2078,2522.9,2522.7,1.3625]
[1748685697298,4.00028,2522.9,2522.8,0.79249]
[1748685697501,0.79249,2522.8,2522.7,2.15499]
[1748685698302,0.79252,2522.7,2522.6,1.42323]
[1748685698800,3.22508,2522.9,2522.4,1.36844448]
[1748685699000,0.79257,2522.6,2522.5,0.79255]
[1748685699199,0.79258,2522.5,2522.4,2.16103448]
[1748685699398,0.79258,2522.5,2522.4,0.00594448]
[1748685703800,3.2078,2522.7,2522.6,0.79255]
[1748685703996,0.79258,2522.5,2522.4,0.00594448]
[1748685706204,1.40888,2522.5,2522.4,0.00594448]
[1748685707505,6.40888,2522.5,2521.1,3.2078]
[1748685707710,3.2078,2521.7,2521.6,0.79284]
[1748685707905,3.2078,2522.0,2521.9,0.79277]
[1748685708106,3.2078,2522.3,2521.8,3.3325]
[1748685708305,0.79268,2522.2,2522.1,0.79268]
[1748685708806,0.7927,2522.2,2522.1,0.7927]
[1748685709206,3.2078,2522.3,2522.2,0.79267]
[1748685709909,3.2078,2522.3,2522.2,2.14317]
[1748685710112,4.00044,2522.3,2522.2,2.14317]
[1748685710408,4.00044,2522.3,2522.2,1.3505]
[1748685710720,4.00044,2522.3,2522.2,2.14317]
[1748685711009,3.2078,2522.3,2522.2,2.14317]
[1748685711207,4.00044,2522.3,2522.2,2.14317]
[1748685711608,3.2078,2522.3,2522.2,2.14317]
[1748685711908,4.00044,2522.3,2522.2,2.14317]
[1748685712710,4.00044,2522.3,2522.2,1.3505]
[1748685713510,4.00044,2522.3,2522.2,2.14317]
[1748685713906,4.00044,2522.3,2522.2,1.3505]
[1748685714503,0.79274,2522.0,2521.9,0.00594448]
[1748685715110,0.79274,2522.0,2521.9,1.30234448]
[1748685715611,4.00054,2522.0,2521.9,0.00594448]
[1748685720709,5.19528448,2522.4,2521.9,0.00594448]
[1748685720908,0.79274,2522.0,2521.9,0.00594448]
[1748685721109,0.79274,2522.0,2521.9,2.09341448]
[1748685721715,0.79273,2522.1,2522.0,0.79272]
[1748685722215,0.79274,2522.0,2521.9,2.09338448]
[1748685722517,0.79274,2522.0,2521.9,1.30064448]
[1748685722717,0.79274,2522.0,2521.9,2.09341448]
[1748685723015,0.79267,2522.3,2522.2,0.79265]
[1748685723313,4.00638448,2522.4,2522.3,0.79264]
[1748685723513,0.79266,2522.3,2522.2,0.79265]
[1748685723710,3.21374448,2522.4,2522.1,1.2896]
[1748685723911,0.00594448,2522.4,2522.3,0.79264]
[1748685724123,3.2078,2523.1,2523.0,0.79242]
[1748685724416,2.34805612,2523.3,2523.2,0.79236]
[1748685725715,0.00594448,2523.5,2523.4,0.7923]
[1748685726014,0.00594448,2523.5,2523.2,0.79827448]
[1748685726318,0.00594448,2523.5,2523.3,0.79231]
[1748685726518,0.79821448,2523.5,2523.4,1.346]
[1748685727017,0.00594448,2523.5,2523.4,2.1383]
[1748685727322,0.79821448,2523.5,2523.4,1.346]
[1748685732825,0.79233,2523.3,2523.2,0.65364448]
[1748685733209,0.79233,2523.3,2523.2,1.99344448]
[1748685733415,0.79232,2523.4,2523.2,2.78579448]
[1748685733609,0.00594448,2523.5,2523.3,1.3398]
[1748685733819,0.00594448,2523.5,2523.4,0.7923]
[1748685734118,0.00594448,2523.5,2523.4,4.0001]
[1748685734917,0.00594448,2523.5,2523.4,9.0001]
[1748685736321,3.2078,2524.1,2523.4,8.2078]
[1748685736519,5.18747,2524.8,2524.0,3.99991]
[1748685736724,0.792,2524.4,2524.3,0.79199]
[1748685737524,0.79205,2524.2,2524.1,2.0402]
[1748685737723,0.79205,2524.2,2524.1,2.83228]
[1748685737920,0.79203,2524.3,2524.2,0.79202]
[1748685738118,0.792,2524.4,2524.3,0.792]
[1748685738427,3.2078,2524.5,2524.2,1.3583]
[1748685738428,0.79201,2524.3,2524.2,1.3583]
[1748685738624,3.23818,2524.4,2523.8,0.79215]
[1748685738931,0.79214,2523.9,2523.8,1.8964]
[1748685739420,0.79214,2523.9,2523.8,1.2555]
[1748685739629,0.79223,2523.6,2523.5,1.43313]
[1748685740323,1.98054,2523.7,2523.3,2.04781]
[1748685740625,3.2078,2523.4,2523.3,0.79233]
[1748685740827,0.79233,2523.3,2523.2,0.00594448]
[1748685741231,2.05053,2523.3,2523.2,0.00594448]
[1748685742626,0.79233,2523.3,2523.2,0.79830448]
[1748685742823,3.2078,2523.4,2523.2,0.79830448]
[1748685743017,3.2078,2523.4,2523.2,0.00594448]
[1748685743219,0.6639,2523.6,2523.3,0.79233]
[1748685743423,0.79227,2523.5,2523.4,0.7923]
[1748685743627,0.79227,2523.5,2523.3,0.7923]
[1748685743824,0.79227,2523.5,2523.4,0.7923]
[1748685744127,0.79227,2523.5,2523.3,1.2661]
[1748685744425,0.79227,2523.5,2523.4,0.7923]
[1748685745023,0.79227,2523.5,2523.3,1.2661]
[1748685745024,3.2078,2523.7,2523.6,0.79223]
[1748685745227,4.0,2523.7,2523.5,0.79224]
[1748685745524,3.2078,2523.7,2523.6,2.10523]
[1748685746129,0.79213,2524.0,2523.9,0.79214]
[1748685746331,0.79211,2524.0,2523.6,3.29357]
[1748685746626,3.2078,2524.1,2524.0,0.79211]
[1748685747817,5.18807,2524.1,2523.0,3.2078]
[1748685748025,0.7923,2523.4,2523.3,0.79232]
[1748685748523,0.7923,2523.4,2523.3,1.2349]
[1748685748728,0.7923,2523.4,2523.3,2.02723]
[1748685749020,1.2578,2523.7,2523.3,1.2349]
[1748685749226,0.79228,2523.5,2523.4,0.79226]
[1748685750229,0.79233,2523.3,2523.2,0.79829448]
[1748685750526,0.79229,2523.5,2523.4,0.79229]
[1748685750727,0.79231,2523.4,2523.3,0.7923]
[1748685751225,0.79233,2523.3,2523.2,0.00594448]
[1748685751531,4.00013,2523.3,2523.2,0.00594448]
[1748685753127,5.30593,2523.3,2523.2,0.00594448]
[1748685753532,4.00013,2523.3,2523.2,0.79830448]
[1748685753925,3.2078,2523.3,2523.2,0.79830448]
[1748685754627,4.00013,2523.3,2523.2,0.00594448]
[1748685757038,9.00013,2523.3,2523.2,0.00594448]
[1748685757534,4.00013,2523.3,2523.2,0.00594448]
[1748685764240,3.2078,2523.3,2523.2,0.79830448]
[1748685764440,3.2078,2523.3,2523.2,1.45420448]
[1748685766441,4.00013,2523.3,2523.2,1.45420448]
[1748685767139,0.79233,2523.3,2523.2,1.45420448]
[1748685767642,0.7923,2523.5,2523.4,0.79228]
[1748685769042,0.7923,2523.4,2523.3,2.04631]
[1748685770040,0.79227,2523.6,2523.5,0.79224]
[1748685770245,3.99993,2524.0,2523.9,0.7921]
[1748685771244,3.99993,2524.0,2523.9,2.143]
[1748685771448,0.79207,2524.2,2524.1,0.79205]
[1748685772242,0.79203,2524.3,2524.2,0.79202]
[1748685772648,3.8726,2524.4,2523.9,1.3509]
[1748685772844,0.79208,2524.1,2524.0,0.79208]
[1748685773044,3.8726,2524.4,2523.8,2.65933]
[1748685773252,0.79207,2524.2,2524.1,0.79207]
[1748685773551,0.79204,2524.3,2524.2,0.79204]
[1748685773747,0.79205,2524.2,2524.1,0.79205]
[1748685773949,1.98008,2524.3,2523.6,0.79221]
[1748685774145,0.79222,2523.7,2523.6,0.79222]
[1748685774451,3.2078,2523.9,2523.7,0.7922]
[1748685774452,0.7922,2523.8,2523.7,0.7922]
[1748685774652,0.79224,2523.6,2523.5,0.79227]
[1748685774951,4.00006,2523.6,2523.4,0.6769]
[1748685775150,3.2078,2523.6,2523.5,0.79226]
[1748685776351,4.00003,2523.6,2523.5,0.79226]
[1748685776554,0.79227,2523.5,2523.4,2.70567]
[1748685776745,3.2078,2523.6,2523.4,2.70567]
[1748685776746,3.2078,2523.6,2523.5,0.79227]
[1748685777143,4.00003,2523.6,2523.5,1.2365]